[Event "NJSK 2023 Jeugd C"]
[Site "Almelo, Netherlands"]
[Date "2023.04.30"]
[Round "1.6"]
[White "Madularea, David"]
[Black "Etienne, Ghilon"]
[Result "1-0"]
[TimeControl "90min/40moves + 30min + 30sec/move"]
[WhiteElo "1895"]
[BlackElo "1673"]

1. e4 {[%clk 01:30:56]} {[%emt 00:00:31]} e5 {[%clk 01:30:53]} 2. Nf3 {[%clk
01:31:21]} Nc6 {[%clk 01:31:14]} 3. Bb5 {[%clk 01:31:42]} g6 {[%clk 01:31:33]}
4. c3 {[%clk 01:32:03]} Bg7 {[%clk 01:31:55]} 5. d4 {[%clk 01:32:22]} Nge7
{[%clk 01:32:04]} 6. O-O {[%clk 01:28:46]} a6 {[%clk 01:30:21]} 7. Bxc6 {[%clk
01:19:46]} Nxc6 {[%clk 01:30:03]} {[%emt 00:00:16]} 8. Bg5 {[%clk 01:20:02]}
{[%emt 00:00:14]} f6 {[%clk 01:26:25]} {[%emt 00:04:08]} 9. Bh4 {[%clk
01:08:06]} {[%emt 00:12:26]} d6 {[%clk 01:14:52]} {[%emt 00:12:03]} 10. h3
{[%clk 01:06:04]} {[%emt 00:02:31]} O-O {[%clk 01:11:56]} {[%emt 00:03:28]} 11.
Qb3+ {[%clk 01:02:23]} {[%emt 00:04:10]} Kh8 {[%clk 01:11:49]} {[%emt
00:00:36]} 12. Rd1 {[%clk 00:36:37]} {[%emt 00:26:17]} Qe7 {[%clk 01:00:22]}
{[%emt 00:11:56]} 13. dxe5 {[%clk 00:31:20]} {[%emt 00:05:48]} dxe5 {[%clk
00:57:51]} {[%emt 00:03:01]} 14. Qa3 {[%clk 00:31:42]} {[%emt 00:00:08]} Qxa3
{[%clk 00:45:00]} {[%emt 00:13:22]} 15. Nxa3 {[%clk 00:32:05]} {[%emt
00:00:06]} Be6 {[%clk 00:45:24]} {[%emt 00:00:06]} 16. Nc2 {[%clk 00:29:36]}
{[%emt 00:02:58]} Rad8 {[%clk 00:45:29]} {[%emt 00:00:25]} 17. Ne3 {[%clk
00:29:17]} {[%emt 00:00:49]} Rfe8 {[%clk 00:37:13]} {[%emt 00:08:45]} 18. Nd5
{[%clk 00:26:49]} {[%emt 00:02:59]} Bxd5 {[%clk 00:37:19]} {[%emt 00:00:25]} 19.
Rxd5 {[%clk 00:26:57]} {[%emt 00:00:20]} Rd6 {[%clk 00:28:35]} {[%emt
00:09:08]} 20. Rxd6 {[%clk 00:24:21]} {[%emt 00:03:14]} cxd6 {[%clk 00:28:59]}
{[%emt 00:00:06]} 21. Rd1 {[%clk 00:24:46]} {[%emt 00:00:04]} Rd8 {[%clk
00:29:15]} {[%emt 00:00:14]} 22. Rd3 {[%clk 00:23:57]} {[%emt 00:01:18]} Kg8
{[%clk 00:27:03]} {[%emt 00:02:43]} 23. Nd2 {[%clk 00:23:49]} {[%emt 00:00:37]}
Kf7 {[%clk 00:25:25]} {[%emt 00:02:09]} 24. Nc4 {[%clk 00:23:26]} {[%emt
00:00:52]} Ke6 {[%clk 00:25:22]} {[%emt 00:00:34]} 25. Nb6 {[%clk 00:23:36]}
{[%emt 00:00:20]} Ne7 {[%clk 00:23:47]} {[%emt 00:02:05]} 26. f3 {[%clk
00:22:16]} {[%emt 00:01:50]} Nc8 {[%clk 00:20:22]} {[%emt 00:03:55]} 27. Nd5
{[%clk 00:18:56]} {[%emt 00:03:50]} Ne7 {[%clk 00:20:02]} {[%emt 00:00:50]} 28.
Nb6 {[%clk 00:17:32]} {[%emt 00:01:54]} Nc8 {[%clk 00:20:17]} {[%emt 00:00:15]}
29. Nd5 {[%clk 00:18:00]} {[%emt 00:00:03]} Ne7 {[%clk 00:20:34]} {[%emt
00:00:13]} 30. Bf2 {[%clk 00:16:27]} {[%emt 00:02:02]} Nxd5 {[%clk 00:20:25]}
{[%emt 00:00:40]} 31. Rxd5 {[%clk 00:15:44]} {[%emt 00:01:12]} Bf8 {[%clk
00:20:35]} {[%emt 00:00:20]} 32. Bc5 {[%clk 00:15:10]} {[%emt 00:01:04]} Be7
{[%clk 00:19:59]} {[%emt 00:01:05]} 33. Bb4 {[%clk 00:15:05]} {[%emt 00:00:35]}
Rc8 {[%clk 00:19:55]} {[%emt 00:00:35]} 34. b3 {[%clk 00:13:24]} {[%emt
00:02:12]} b6 {[%clk 00:17:45]} {[%emt 00:02:40]} 35. c4 {[%clk 00:13:48]}
{[%emt 00:00:06]} Rc6 {[%clk 00:17:56]} {[%emt 00:00:17]} 36. Kf2 {[%clk
00:13:45]} {[%emt 00:00:34]} f5 {[%clk 00:17:59]} {[%emt 00:00:28]} 37. Ke3
{[%clk 00:14:00]} {[%emt 00:00:14]} Bg5+ {[%clk 00:17:47]} {[%emt 00:00:42]} 38.
Kd3 {[%clk 00:14:23]} {[%emt 00:00:07]} Be7 {[%clk 00:18:09]} {[%emt 00:00:09]}
39. Bd2 {[%clk 00:13:06]} {[%emt 00:01:47]} f4 {[%clk 00:18:24]} {[%emt
00:00:16]} 40. Be1 {[%clk 00:12:48]} {[%emt 00:00:47]} Rc5 {[%clk 00:17:28]}
{[%emt 00:01:27]} 41. Bf2 {[%clk 00:12:48]} {[%emt 00:00:29]} Rc6 {[%clk
00:16:43]} {[%emt 00:01:15]} 42. b4 {[%clk 00:12:53]} {[%emt 00:00:25]} Bd8
{[%clk 00:10:11]} {[%emt 00:07:02]} 43. a4 {[%clk 00:13:02]} {[%emt 00:00:21]}
Bc7 {[%clk 00:07:08]} {[%emt 00:03:33]} 44. b5 {[%clk 00:12:59]} {[%emt
00:00:33]} axb5 {[%clk 00:07:32]} {[%emt 00:00:07]} 45. axb5 {[%clk 00:13:22]}
{[%emt 00:00:07]} Rc5 {[%clk 00:07:58]} {[%emt 00:00:04]} 46. Bxc5 {[%clk
00:13:42]} {[%emt 00:00:09]} bxc5 {[%clk 00:08:25]} {[%emt 00:00:04]} 47. Kc2
{[%clk 00:13:55]} {[%emt 00:00:17]} Bb6 {[%clk 00:08:50]} {[%emt 00:00:06]} 48.
Rd1 {[%clk 00:13:58]} {[%emt 00:00:26]} Kd7 {[%clk 00:08:47]} {[%emt 00:00:32]}
49. Ra1 {[%clk 00:14:24]} {[%emt 00:00:05]} Bc7 {[%clk 00:08:40]} {[%emt
00:00:35]} 50. Ra8 {[%clk 00:14:46]} {[%emt 00:00:10]} Bd8 {[%clk 00:09:00]}
{[%emt 00:00:10]} 51. Ra7+ {[%clk 00:15:12]} {[%emt 00:00:03]} Kc8 {[%clk
00:09:16]} {[%emt 00:00:16]} 52. Rxh7 {[%clk 00:15:36]} {[%emt 00:00:05]} g5
{[%clk 00:09:33]} {[%emt 00:00:14]} 53. Kb3 {[%clk 00:15:57]} {[%emt 00:00:09]}
Bf6 {[%clk 00:08:55]} {[%emt 00:01:08]} 54. b6 {[%clk 00:16:20]} {[%emt
00:00:07]} Kb8 {[%clk 00:09:03]} {[%emt 00:00:21]} 55. Ka4 {[%clk 00:16:46]}
{[%emt 00:00:04]} Ka8 {[%clk 00:09:10]} {[%emt 00:00:22]} 56. Kb5 {[%clk
00:17:11]} {[%emt 00:00:06]} Kb8 {[%clk 00:09:21]} {[%emt 00:00:19]} 57. Kc6
{[%clk 00:17:36]} {[%emt 00:00:05]} d5 {[%clk 00:09:28]} {[%emt 00:00:24]} 58.
exd5 {[%clk 00:17:52]} {[%emt 00:00:13]} e4 {[%clk 00:09:50]} {[%emt 00:00:09]}
59. fxe4 {[%clk 00:18:16]} {[%emt 00:00:05]} f3 {[%clk 00:10:04]} {[%emt
00:00:16]} 60. gxf3 {[%clk 00:18:41]} {[%emt 00:00:06]} g4 {[%clk 00:10:21]}
{[%emt 00:00:14]} 61. fxg4 {[%clk 00:19:03]} {[%emt 00:00:07]} Kc8 {[%clk
00:10:28]} {[%emt 00:00:22]} 62. Rf7 {[%clk 00:19:12]} {[%emt 00:00:21]} Bh4
{[%clk 00:10:30]} {[%emt 00:00:28]} 63. Rf8+ {[%clk 00:19:38]} {[%emt
00:00:04]} Bd8 {[%clk 00:10:35]} {[%emt 00:00:26]} 64. d6 {[%clk 00:20:06]}
{[%emt 00:00:02]} Kb8 {[%clk 00:10:50]} {[%emt 00:00:15]} 65. Rxd8# {[%clk
00:20:03]} {[%emt 00:00:02]} 1-0

[Event "NJSK 2023 Jeugd C"]
[Site "Almelo, Netherlands"]
[Date "2023.04.30"]
[Round "1.7"]
[White "Wortman, Rawi"]
[Black "Kurt, Sascha"]
[Result "0-1"]
[TimeControl "90min/40moves + 30min + 30sec/move"]
[WhiteElo "1668"]
[BlackElo "1894"]

1. e4 {[%clk 01:30:58]} {[%emt 00:01:00]} c5 {[%clk 01:30:54]} 2. c3 {[%clk
01:31:24]} Nf6 {[%clk 01:31:20]} 3. e5 {[%clk 01:31:51]} Nd5 {[%clk 01:31:46]}
4. d4 {[%clk 01:32:16]} cxd4 {[%clk 01:32:08]} 5. Nf3 {[%clk 01:32:40]} e6
{[%clk 01:32:32]} 6. cxd4 {[%clk 01:33:04]} d6 {[%clk 01:32:47]} 7. Nc3 {[%clk
01:32:43]} Nxc3 {[%clk 01:33:09]} 8. bxc3 {[%clk 01:33:09]} Qc7 {[%clk
01:33:25]} 9. Qc2 {[%clk 01:31:48]} Nd7 {[%clk 01:32:28]} 10. Bf4 {[%clk
01:30:34]} Be7 {[%clk 01:31:24]} 11. exd6 {[%clk 01:30:29]} Bxd6 {[%clk
01:31:45]} 12. Bxd6 {[%clk 01:30:47]} Qxd6 {[%clk 01:32:13]} 13. Bd3 {[%clk
01:29:53]} h6 {[%clk 01:31:45]} 14. O-O {[%clk 01:29:58]} O-O {[%clk 01:31:42]}
15. Rfe1 {[%clk 01:29:36]} b6 {[%clk 01:29:36]} 16. a4 {[%clk 01:25:35]} {[%emt
00:03:31]} Bb7 {[%clk 01:26:39]} {[%emt 00:03:26]} 17. Be4 {[%clk 01:22:50]}
{[%emt 00:03:16]} Bxe4 {[%clk 01:26:18]} {[%emt 00:00:51]} 18. Qxe4 {[%clk
01:23:04]} {[%emt 00:00:17]} Nf6 {[%clk 01:24:57]} {[%emt 00:01:50]} 19. Qd3
{[%clk 01:21:55]} {[%emt 00:01:38]} Rac8 {[%clk 01:22:54]} {[%emt 00:02:31]} 20.
a5 {[%clk 01:18:48]} {[%emt 00:03:40]} b5 {[%clk 01:19:51]} {[%emt 00:03:33]}
21. Ne5 {[%clk 01:16:47]} {[%emt 00:02:31]} Rfd8 {[%clk 01:14:20]} {[%emt
00:06:00]} 22. Qf3 {[%clk 01:05:56]} {[%emt 00:11:22]} Qd5 {[%clk 01:11:07]}
{[%emt 00:03:42]} 23. Rec1 {[%clk 01:03:57]} {[%emt 00:02:29]} Qxf3 {[%clk
01:10:56]} {[%emt 00:00:42]} 24. Nxf3 {[%clk 01:04:19]} {[%emt 00:00:07]} Nd5
{[%clk 01:09:09]} {[%emt 00:02:17]} 25. a6 {[%clk 00:53:53]} {[%emt 00:10:57]}
Nxc3 {[%clk 01:08:25]} {[%emt 00:01:14]} 26. Kf1 {[%clk 00:54:12]} {[%emt
00:00:11]} b4 {[%clk 01:08:10]} {[%emt 00:00:45]} 27. Rc2 {[%clk 00:52:50]}
{[%emt 00:01:52]} Nd5 {[%clk 01:04:10]} {[%emt 00:04:28]} 28. Rb2 {[%clk
00:51:33]} {[%emt 00:01:47]} Rd6 {[%clk 00:57:08]} {[%emt 00:07:32]} 29. Ne5
{[%clk 00:48:32]} {[%emt 00:03:30]} f6 {[%clk 00:55:36]} {[%emt 00:02:03]} 30.
Nd3 {[%clk 00:43:32]} {[%emt 00:05:30]} Rc4 {[%clk 00:54:04]} {[%emt 00:02:02]}
31. Ra4 {[%clk 00:42:23]} {[%emt 00:01:40]} Rxd4 {[%clk 00:52:39]} {[%emt
00:01:55]} 32. Nxb4 {[%clk 00:41:27]} {[%emt 00:01:25]} Rd1+ {[%clk 00:52:59]}
{[%emt 00:00:10]} 33. Ke2 {[%clk 00:41:46]} {[%emt 00:00:12]} Nc3+ {[%clk
00:53:24]} {[%emt 00:00:04]} 0-1

[Event "NJSK 2023 Jeugd C"]
[Site "Almelo, Netherlands"]
[Date "2023.04.30"]
[Round "1.8"]
[White "Zecha, Oscar"]
[Black "Fallaux, Storm"]
[Result "1/2-1/2"]
[TimeControl "90min/40moves + 30min + 30sec/move"]
[WhiteElo "1879"]
[BlackElo "1650"]

1. e4 {[%clk 01:30:57]} {[%emt 00:00:03]} c5 {[%clk 01:30:57]} {[%emt
00:00:04]} 2. Nf3 {[%clk 01:31:25]} {[%emt 00:00:02]} d6 {[%clk 01:31:21]}
{[%emt 00:00:06]} 3. d4 {[%clk 01:31:53]} {[%emt 00:00:02]} cxd4 {[%clk
01:31:46]} {[%emt 00:00:05]} 4. Nxd4 {[%clk 01:32:21]} {[%emt 00:00:02]} Nf6
{[%clk 01:32:10]} {[%emt 00:00:07]} 5. Nc3 {[%clk 01:32:49]} {[%emt 00:00:02]}
a6 {[%clk 01:32:31]} {[%emt 00:00:09]} 6. f3 {[%clk 01:33:17]} {[%emt
00:00:01]} e5 {[%clk 01:32:55]} {[%emt 00:00:06]} 7. Nb3 {[%clk 01:33:45]}
{[%emt 00:00:01]} Be6 {[%clk 01:33:18]} {[%emt 00:00:07]} 8. Be3 {[%clk
01:34:12]} {[%emt 00:00:03]} Be7 {[%clk 01:33:39]} {[%emt 00:00:10]} 9. Qd2
{[%clk 01:34:35]} {[%emt 00:00:07]} h5 {[%clk 01:34:04]} {[%emt 00:00:05]} 10.
O-O-O {[%clk 01:34:40]} {[%emt 00:00:24]} Nbd7 {[%clk 01:34:15]} {[%emt
00:00:19]} 11. Kb1 {[%clk 01:26:35]} {[%emt 00:08:35]} b5 {[%clk 01:32:53]}
{[%emt 00:01:51]} 12. Be2 {[%clk 01:19:35]} {[%emt 00:07:30]} Nb6 {[%clk
01:22:42]} {[%emt 00:10:41]} 13. Na5 {[%clk 01:16:46]} {[%emt 00:03:19]} Qc7
{[%clk 01:11:19]} {[%emt 00:11:53]} 14. a3 {[%clk 01:06:44]} {[%emt 00:10:33]}
O-O {[%clk 01:03:59]} {[%emt 00:07:50]} 15. Rhg1 {[%clk 01:04:37]} {[%emt
00:02:36]} Nc4 {[%clk 00:59:36]} {[%emt 00:04:54]} 16. Nxc4 {[%clk 01:04:18]}
{[%emt 00:00:48]} bxc4 {[%clk 00:58:56]} {[%emt 00:01:10]} 17. Nd5 {[%clk
01:02:36]} {[%emt 00:02:11]} Bxd5 {[%clk 00:58:25]} {[%emt 00:01:01]} 18. exd5
{[%clk 01:03:05]} {[%emt 00:00:01]} Rab8 {[%clk 00:56:41]} {[%emt 00:02:14]} 19.
Qc3 {[%clk 01:00:47]} {[%emt 00:02:48]} Rfc8 {[%clk 00:56:30]} {[%emt
00:00:42]} 20. Ka1 {[%clk 00:58:35]} {[%emt 00:02:41]} Qb7 {[%clk 00:56:06]}
{[%emt 00:00:53]} 21. Rb1 {[%clk 00:52:06]} {[%emt 00:07:00]} Nxd5 {[%clk
00:49:56]} {[%emt 00:06:40]} 22. Qd2 {[%clk 00:52:25]} {[%emt 00:00:11]} Nxe3
{[%clk 00:44:28]} {[%emt 00:05:57]} 23. Qxe3 {[%clk 00:52:42]} {[%emt
00:00:14]} d5 {[%clk 00:43:25]} {[%emt 00:01:33]} 24. c3 {[%clk 00:39:23]}
{[%emt 00:13:48]} Bc5 {[%clk 00:43:11]} {[%emt 00:00:44]} 25. Qd2 {[%clk
00:38:55]} {[%emt 00:00:59]} Bxg1 {[%clk 00:43:22]} {[%emt 00:00:19]} 26. Rxg1
{[%clk 00:39:23]} {[%emt 00:00:01]} Qb6 {[%clk 00:41:42]} {[%emt 00:02:10]} 27.
Rd1 {[%clk 00:33:36]} {[%emt 00:06:17]} d4 {[%clk 00:39:39]} {[%emt 00:02:33]}
28. f4 {[%clk 00:31:21]} {[%emt 00:02:45]} dxc3 {[%clk 00:39:24]} {[%emt
00:00:45]} 29. Qxc3 {[%clk 00:30:53]} {[%emt 00:00:58]} Qb3 {[%clk 00:34:27]}
{[%emt 00:05:27]} 30. Qxb3 {[%clk 00:28:56]} {[%emt 00:02:27]} Rxb3 {[%clk
00:34:16]} {[%emt 00:00:41]} 31. Ka2 {[%clk 00:24:31]} {[%emt 00:04:55]} Rcb8
{[%clk 00:32:49]} {[%emt 00:01:57]} 32. Rd2 {[%clk 00:24:50]} {[%emt 00:00:11]}
exf4 {[%clk 00:31:12]} {[%emt 00:02:07]} 33. Bxc4 {[%clk 00:25:06]} {[%emt
00:00:14]} R3b6 {[%clk 00:31:29]} {[%emt 00:00:11]} 34. b4 {[%clk 00:24:16]}
{[%emt 00:01:22]} Rc6 {[%clk 00:25:12]} {[%emt 00:06:46]} 35. Kb3 {[%clk
00:23:26]} {[%emt 00:01:21]} Rbc8 {[%clk 00:24:40]} {[%emt 00:01:02]} 36. Be2
{[%clk 00:21:54]} {[%emt 00:02:03]} g6 {[%clk 00:22:34]} {[%emt 00:02:35]} 37.
a4 {[%clk 00:21:03]} {[%emt 00:01:21]} Kf8 {[%clk 00:20:39]} {[%emt 00:02:24]}
38. b5 {[%clk 00:20:52]} {[%emt 00:00:42]} axb5 {[%clk 00:19:48]} {[%emt
00:01:20]} 39. axb5 {[%clk 00:21:19]} {[%emt 00:00:03]} Re6 {[%clk 00:19:31]}
{[%emt 00:00:47]} 40. Kb4 {[%clk 00:18:12]} {[%emt 00:03:38]} Ke7 {[%clk
00:18:27]} {[%emt 00:01:33]} 41. Bf3 {[%clk 00:18:31]} {[%emt 00:00:11]} Kf6
{[%clk 00:17:07]} {[%emt 00:01:49]} 42. Ka5 {[%clk 00:12:06]} {[%emt 00:06:55]}
Rc1 {[%clk 00:13:14]} {[%emt 00:04:22]} 43. Rb2 {[%clk 00:11:36]} {[%emt
00:01:01]} Rc5 {[%clk 00:11:00]} {[%emt 00:02:44]} 44. Kb4 {[%clk 00:11:08]}
{[%emt 00:00:58]} Ree5 {[%clk 00:11:01]} {[%emt 00:00:29]} 45. Ka5 {[%clk
00:09:55]} {[%emt 00:01:43]} Re6 {[%clk 00:09:11]} {[%emt 00:02:19]} 46. Kb4
{[%clk 00:10:04]} {[%emt 00:00:21]} Rce5 {[%clk 00:09:12]} {[%emt 00:00:29]} 47.
Ka4 {[%clk 00:07:26]} {[%emt 00:03:08]} Rb6 {[%clk 00:08:39]} {[%emt 00:01:03]}
48. Ka5 {[%clk 00:06:41]} {[%emt 00:01:15]} Ree6 {[%clk 00:08:30]} {[%emt
00:00:38]} 49. Rc2 {[%clk 00:07:01]} {[%emt 00:00:11]} Ke7 {[%clk 00:08:16]}
{[%emt 00:00:41]} 50. Rc7+ {[%clk 00:06:21]} {[%emt 00:01:13]} Ke8 {[%clk
00:07:51]} {[%emt 00:00:55]} 51. Bd5 {[%clk 00:06:05]} {[%emt 00:00:47]} Red6
{[%clk 00:05:13]} {[%emt 00:03:06]} 52. Bxf7+ {[%clk 00:03:31]} {[%emt
00:03:05]} Kd8 {[%clk 00:05:29]} {[%emt 00:00:15]} 53. Rc4 {[%clk 00:03:14]}
{[%emt 00:00:48]} Rf6 {[%clk 00:05:39]} {[%emt 00:00:19]} 54. Bd5 {[%clk
00:03:05]} {[%emt 00:00:39]} h4 {[%clk 00:05:35]} {[%emt 00:00:34]} 55. h3
{[%clk 00:02:40]} {[%emt 00:00:55]} Rfd6 {[%clk 00:04:43]} {[%emt 00:01:23]} 56.
Bf3 {[%clk 00:02:40]} {[%emt 00:00:30]} Rf6 {[%clk 00:04:16]} {[%emt 00:00:55]}
1/2-1/2

[Event "NJSK 2023 Jeugd C"]
[Site "Almelo, Netherlands"]
[Date "2023.04.30"]
[Round "1.9"]
[White "Thijssen, Freek"]
[Black "Kazarjan, Gachatur"]
[Result "1/2-1/2"]
[TimeControl "90min/40moves + 30min + 30sec/move"]
[WhiteElo "1644"]
[BlackElo "1872"]

1. e4 {[%clk 01:30:57]} {[%emt 00:00:02]} c5 {[%clk 01:30:53]} {[%emt
00:00:07]} 2. Nf3 {[%clk 01:31:15]} {[%emt 00:00:12]} d6 {[%clk 01:31:19]}
{[%emt 00:00:04]} 3. d4 {[%clk 01:31:40]} {[%emt 00:00:05]} cxd4 {[%clk
01:31:45]} {[%emt 00:00:04]} 4. Nxd4 {[%clk 01:32:05]} {[%emt 00:00:05]} Nf6
{[%clk 01:32:08]} {[%emt 00:00:07]} 5. Nc3 {[%clk 01:32:29]} {[%emt 00:00:06]}
g6 {[%clk 01:32:32]} {[%emt 00:00:06]} 6. Be3 {[%clk 01:32:45]} {[%emt
00:00:14]} Bg7 {[%clk 01:32:55]} {[%emt 00:00:07]} 7. f3 {[%clk 01:33:05]}
{[%emt 00:00:10]} O-O {[%clk 01:33:17]} {[%emt 00:00:08]} 8. Qd2 {[%clk
01:33:24]} {[%emt 00:00:11]} Nc6 {[%clk 01:33:41]} {[%emt 00:00:05]} 9. g4
{[%clk 01:33:49]} {[%emt 00:00:06]} Bd7 {[%clk 01:31:25]} {[%emt 00:02:46]} 10.
O-O-O {[%clk 01:32:04]} {[%emt 00:02:15]} Rc8 {[%clk 01:31:47]} {[%emt
00:00:09]} 11. h4 {[%clk 01:30:09]} {[%emt 00:02:24]} h5 {[%clk 01:31:46]}
{[%emt 00:00:31]} 12. g5 {[%clk 01:25:35]} {[%emt 00:05:05]} Ne8 {[%clk
01:29:44]} {[%emt 00:02:31]} 13. Be2 {[%clk 01:12:30]} {[%emt 00:13:35]} Ne5
{[%clk 01:27:49]} {[%emt 00:02:25]} 14. Rhf1 {[%clk 01:03:28]} {[%emt
00:09:32]} Nc4 {[%clk 01:26:06]} {[%emt 00:02:13]} 15. Bxc4 {[%clk 01:03:45]}
{[%emt 00:00:13]} Rxc4 {[%clk 01:26:29]} {[%emt 00:00:07]} 16. Qd3 {[%clk
01:01:39]} {[%emt 00:02:37]} Rc8 {[%clk 01:21:31]} {[%emt 00:05:28]} 17. Nde2
{[%clk 00:53:55]} {[%emt 00:08:14]} b5 {[%clk 01:16:07]} {[%emt 00:05:54]} 18.
Bd4 {[%clk 00:45:43]} {[%emt 00:08:42]} Nc7 {[%clk 01:08:30]} {[%emt 00:08:07]}
19. Bxg7 {[%clk 00:44:41]} {[%emt 00:01:31]} Kxg7 {[%clk 01:08:54]} {[%emt
00:00:07]} 20. Nf4 {[%clk 00:41:17]} {[%emt 00:03:54]} b4 {[%clk 01:05:10]}
{[%emt 00:04:14]} 21. Nce2 {[%clk 00:36:55]} {[%emt 00:04:51]} Bb5 {[%clk
01:01:49]} {[%emt 00:03:51]} 22. Qe3 {[%clk 00:35:38]} {[%emt 00:01:47]} a5
{[%clk 00:54:01]} {[%emt 00:08:19]} 23. Rd2 {[%clk 00:34:06]} {[%emt 00:02:03]}
Ne6 {[%clk 00:50:48]} {[%emt 00:03:43]} 24. Rfd1 {[%clk 00:31:53]} {[%emt
00:02:42]} Bxe2 {[%clk 00:33:02]} {[%emt 00:18:16]} 25. Rxe2 {[%clk 00:26:29]}
{[%emt 00:05:55]} Nxf4 {[%clk 00:26:41]} {[%emt 00:06:52]} 26. Qxf4 {[%clk
00:26:50]} {[%emt 00:00:09]} Qd7 {[%clk 00:19:39]} {[%emt 00:07:32]} 27. e5
{[%clk 00:16:34]} {[%emt 00:10:45]} Qe6 {[%clk 00:19:06]} {[%emt 00:01:04]} 28.
Kb1 {[%clk 00:15:59]} {[%emt 00:01:05]} Rc4 {[%clk 00:16:48]} {[%emt 00:02:47]}
29. Rd4 {[%clk 00:10:28]} {[%emt 00:06:02]} Rfc8 {[%clk 00:15:26]} {[%emt
00:01:52]} 30. Rxc4 {[%clk 00:07:04]} {[%emt 00:03:54]} Rxc4 {[%clk 00:15:52]}
{[%emt 00:00:04]} 31. Qh2 {[%clk 00:07:13]} {[%emt 00:00:20]} Qd5 {[%clk
00:12:48]} {[%emt 00:03:34]} 32. Re1 {[%clk 00:04:27]} {[%emt 00:03:16]} Rd4
{[%clk 00:12:34]} {[%emt 00:00:44]} 33. Qe2 {[%clk 00:03:31]} {[%emt 00:01:26]}
dxe5 {[%clk 00:12:11]} {[%emt 00:00:53]} 34. c3 {[%clk 00:02:50]} {[%emt
00:01:11]} bxc3 {[%clk 00:12:14]} {[%emt 00:00:28]} 35. Qxe5+ {[%clk 00:03:12]}
{[%emt 00:00:07]} Qxe5 {[%clk 00:12:35]} {[%emt 00:00:09]} 36. Rxe5 {[%clk
00:03:37]} {[%emt 00:00:05]} cxb2 {[%clk 00:12:30]} {[%emt 00:00:35]} 37. Rxa5
{[%clk 00:02:51]} {[%emt 00:01:15]} Rxh4 {[%clk 00:12:54]} {[%emt 00:00:06]} 38.
Kxb2 {[%clk 00:03:05]} {[%emt 00:00:17]} Rf4 {[%clk 00:13:17]} {[%emt
00:00:08]} 39. Ra3 {[%clk 00:02:24]} {[%emt 00:01:11]} h4 {[%clk 00:13:30]}
{[%emt 00:00:17]} 40. Re3 {[%clk 00:02:33]} {[%emt 00:00:21]} h3 {[%clk
00:12:21]} {[%emt 00:01:40]} 41. Rxe7 {[%clk 00:02:46]} {[%emt 00:00:16]} Rxf3
{[%clk 00:12:34]} {[%emt 00:00:17]} 42. Re1 {[%clk 00:02:40]} {[%emt 00:00:34]}
Rg3 {[%clk 00:12:41]} {[%emt 00:00:25]} 43. Rh1 {[%clk 00:02:42]} {[%emt
00:00:28]} f6 {[%clk 00:11:36]} {[%emt 00:01:35]} 44. gxf6+ {[%clk 00:02:51]}
{[%emt 00:00:21]} Kxf6 {[%clk 00:12:00]} {[%emt 00:00:07]} 45. Rf1+ {[%clk
00:02:57]} {[%emt 00:00:22]} Ke5 {[%clk 00:12:22]} {[%emt 00:00:08]} 46. a4
{[%clk 00:02:58]} {[%emt 00:00:29]} h2 {[%clk 00:12:21]} {[%emt 00:00:31]} 47.
Rh1 {[%clk 00:03:11]} {[%emt 00:00:17]} Rh3 {[%clk 00:12:47]} {[%emt 00:00:04]}
48. a5 {[%clk 00:03:31]} {[%emt 00:00:10]} Kd6 {[%clk 00:13:12]} {[%emt
00:00:05]} 49. Kc2 {[%clk 00:03:19]} {[%emt 00:00:42]} g5 {[%clk 00:13:36]}
{[%emt 00:00:06]} 50. Kd2 {[%clk 00:03:37]} {[%emt 00:00:13]} g4 {[%clk
00:13:22]} {[%emt 00:00:44]} 51. Ke2 {[%clk 00:03:45]} {[%emt 00:00:17]} Ra3
{[%clk 00:13:45]} {[%emt 00:00:13]} 52. Kf2 {[%clk 00:03:50]} {[%emt 00:00:23]}
g3+ {[%clk 00:14:06]} {[%emt 00:00:09]} 53. Kg2 {[%clk 00:04:04]} {[%emt
00:00:16]} Kc5 {[%clk 00:13:37]} {[%emt 00:00:59]} 54. Rb1 {[%clk 00:03:51]}
{[%emt 00:00:44]} Kd4 {[%clk 00:13:10]} {[%emt 00:00:57]} 55. Rf1 {[%clk
00:02:17]} {[%emt 00:02:04]} Ke4 {[%clk 00:12:12]} {[%emt 00:01:28]} 56. a6
{[%clk 00:02:21]} {[%emt 00:00:26]} h1=Q+ {[%clk 00:10:07]} {[%emt 00:02:35]}
57. Rxh1 {[%clk 00:02:13]} {[%emt 00:00:38]} Kf4 {[%clk 00:10:27]} {[%emt
00:00:10]} 58. Rh4+ {[%clk 00:02:13]} {[%emt 00:00:30]} Ke5 {[%clk 00:10:49]}
{[%emt 00:00:16]} 1/2-1/2